Workbook

Sheet ذهب 18
B1: المجاميع | C1: =SUM(C3:C146) -> 455696.42
B2: رقم الصف | C2: وزن
B3: 9 | C3: =SUMIF([1]PRODUCT!D$5:D$2000,B3,[1]PRODUCT!F$5:F$2000) -> 348.46 | D3: =C3/C$1*100 -> 0.07646757462
B4: 40 | C4: =SUMIF([1]PRODUCT!D$5:D$2000,B4,[1]PRODUCT!F$5:F$2000) -> 5593.47 | D4: =C4/C$1*100 -> 1.227455331
B5: 41 | C5: =SUMIF([1]PRODUCT!D$5:D$2000,B5,[1]PRODUCT!F$5:F$2000) -> 339.9 | D5: 0.07458913107
B6: 43 | C6: =SUMIF([1]PRODUCT!D$5:D$2000,B6,[1]PRODUCT!F$5:F$2000) -> 95.89 | D6: 0.02104251774
B7: 44 | C7: =SUMIF([1]PRODUCT!D$5:D$2000,B7,[1]PRODUCT!F$5:F$2000) -> 44.04 | D7: 0.009664328721
B8: 45 | C8: =SUMIF([1]PRODUCT!D$5:D$2000,B8,[1]PRODUCT!F$5:F$2000) -> 320.43 | D8: 0.07031654978
B9: 47 | C9: =SUMIF([1]PRODUCT!D$5:D$2000,B9,[1]PRODUCT!F$5:F$2000) -> 117.59 | D9: 0.02580445991
B10: 48 | C10: =SUMIF([1]PRODUCT!D$5:D$2000,B10,[1]PRODUCT!F$5:F$2000) -> 91546.02 | D10: =C10/C$1*100 -> 20.08925591
B11: 63 | C11: =SUMIF([1]PRODUCT!D$5:D$2000,B11,[1]PRODUCT!F$5:F$2000) -> 371.14 | D11: 0.08144457224
B12: 99 | C12: =SUMIF([1]PRODUCT!D$5:D$2000,B12,[1]PRODUCT!F$5:F$2000) -> 3.13 | D12: 0.0006868607833
B13: 103 | C13: =SUMIF([1]PRODUCT!D$5:D$2000,B13,[1]PRODUCT!F$5:F$2000) -> 1021.39 | D13: 0.2241382541
B14: 104 | C14: =SUMIF([1]PRODUCT!D$5:D$2000,B14,[1]PRODUCT!F$5:F$2000) -> 16242.43 | D14: =C14/C$1*100 -> 3.564309327
B15: 105 | C15: =SUMIF([1]PRODUCT!D$5:D$2000,B15,[1]PRODUCT!F$5:F$2000) -> 434.65 | D15: 0.09538148226
B16: 110 | C16: =SUMIF([1]PRODUCT!D$5:D$2000,B16,[1]PRODUCT!F$5:F$2000) -> 3052.3 | D16: 0.6698099581
B17: 164 | C17: =SUMIF([1]PRODUCT!D$5:D$2000,B17,[1]PRODUCT!F$5:F$2000) -> 5071.34 | D17: =C17/C$1*100 -> 1.112876858
B18: 165 | C18: =SUMIF([1]PRODUCT!D$5:D$2000,B18,[1]PRODUCT!F$5:F$2000) -> 1174.87 | D18: 0.2578185714
B19: 166 | C19: =SUMIF([1]PRODUCT!D$5:D$2000,B19,[1]PRODUCT!F$5:F$2000) -> 1704.96 | D19: 0.3741438215
B20: 167 | C20: =SUMIF([1]PRODUCT!D$5:D$2000,B20,[1]PRODUCT!F$5:F$2000) -> 1480.64 | D20: 0.3249180672
B21: 168 | C21: =SUMIF([1]PRODUCT!D$5:D$2000,B21,[1]PRODUCT!F$5:F$2000) -> 153.78 | D21: 0.03374615056
B22: 192 | C22: =SUMIF([1]PRODUCT!D$5:D$2000,B22,[1]PRODUCT!F$5:F$2000) -> 4555.6 | D22: 0.999700634
B23: 206 | C23: =SUMIF([1]PRODUCT!D$5:D$2000,B23,[1]PRODUCT!F$5:F$2000) -> 1654.38 | D23: 0.3630443267
B24: 207 | C24: =SUMIF([1]PRODUCT!D$5:D$2000,B24,[1]PRODUCT!F$5:F$2000) -> 9971.96 | D24: 2.188290178
B25: 345 | C25: =SUMIF([1]PRODUCT!D$5:D$2000,B25,[1]PRODUCT!F$5:F$2000) -> 33289.62 | D25: 7.30521868
B26: 395 | C26: =SUMIF([1]PRODUCT!D$5:D$2000,B26,[1]PRODUCT!F$5:F$2000) -> 60.89 | D26: 0.01336196585
B27: 397 | C27: =SUMIF([1]PRODUCT!D$5:D$2000,B27,[1]PRODUCT!F$5:F$2000) -> 27 | D27: 0.005924997172
B28: 422 | C28: =SUMIF([1]PRODUCT!D$5:D$2000,B28,[1]PRODUCT!F$5:F$2000) -> 449.42 | D28: 0.09862267516
B29: 424 | C29: =SUMIF([1]PRODUCT!D$5:D$2000,B29,[1]PRODUCT!F$5:F$2000) -> 11.69 | D29: 0.002565304331
B30: 441 | C30: =SUMIF([1]PRODUCT!D$5:D$2000,B30,[1]PRODUCT!F$5:F$2000) -> 539.12 | D30: 0.1183068324
B31: 445 | C31: =SUMIF([1]PRODUCT!D$5:D$2000,B31,[1]PRODUCT!F$5:F$2000) -> 153.21 | D31: 0.03362106729
B32: 473 | C32: =SUMIF([1]PRODUCT!D$5:D$2000,B32,[1]PRODUCT!F$5:F$2000) -> 16.3 | D32: 0.003576942737
B33: 479 | C33: =SUMIF([1]PRODUCT!D$5:D$2000,B33,[1]PRODUCT!F$5:F$2000) -> 2475.57 | D33: 0.5432498241
B34: 486 | C34: =SUMIF([1]PRODUCT!D$5:D$2000,B34,[1]PRODUCT!F$5:F$2000) -> 1823.61 | D34: 0.4001808924
B35: 487 | C35: =SUMIF([1]PRODUCT!D$5:D$2000,B35,[1]PRODUCT!F$5:F$2000) -> 1599.81 | D35: 0.3510692491
B36: 488 | C36: =SUMIF([1]PRODUCT!D$5:D$2000,B36,[1]PRODUCT!F$5:F$2000) -> 6658.7 | D36: 1.461214025
B37: 492 | C37: =SUMIF([1]PRODUCT!D$5:D$2000,B37,[1]PRODUCT!F$5:F$2000) -> 528.32 | D37: 0.1159368336
B38: 493 | C38: =SUMIF([1]PRODUCT!D$5:D$2000,B38,[1]PRODUCT!F$5:F$2000) -> 3157.54 | D38: 0.6929042804
B39: 505 | C39: =SUMIF([1]PRODUCT!D$5:D$2000,B39,[1]PRODUCT!F$5:F$2000) -> 1.53 | D39: 0.0003357498398
B40: 510 | C40: =SUMIF([1]PRODUCT!D$5:D$2000,B40,[1]PRODUCT!F$5:F$2000) -> 2291.05 | D40: 0.5027579545
B41: 512 | C41: =SUMIF([1]PRODUCT!D$5:D$2000,B41,[1]PRODUCT!F$5:F$2000) -> 257.73 | D41: 0.05655738968
B42: 522 | C42: =SUMIF([1]PRODUCT!D$5:D$2000,B42,[1]PRODUCT!F$5:F$2000) -> 1806.82 | D42: 0.3964964219
B43: 553 | C43: =SUMIF([1]PRODUCT!D$5:D$2000,B43,[1]PRODUCT!F$5:F$2000) -> 998.34 | D43: 0.2190800621
B44: 556 | C44: =SUMIF([1]PRODUCT!D$5:D$2000,B44,[1]PRODUCT!F$5:F$2000) -> 2821.87 | D44: 0.6192433989
B45: 558 | C45: =SUMIF([1]PRODUCT!D$5:D$2000,B45,[1]PRODUCT!F$5:F$2000) -> 4798.86 | D45: 1.053082664
B46: 608 | C46: =SUMIF([1]PRODUCT!D$5:D$2000,B46,[1]PRODUCT!F$5:F$2000) -> 276.39 | D46: 0.06065222106
B47: 609 | C47: =SUMIF([1]PRODUCT!D$5:D$2000,B47,[1]PRODUCT!F$5:F$2000) -> 51.92 | D47: 0.01139355012
B48: 611 | C48: =SUMIF([1]PRODUCT!D$5:D$2000,B48,[1]PRODUCT!F$5:F$2000) -> 23.59 | D48: 0.005176691974
B49: 613 | C49: =SUMIF([1]PRODUCT!D$5:D$2000,B49,[1]PRODUCT!F$5:F$2000) -> 19.08 | D49: 0.004186998002
B50: 627 | C50: =SUMIF([1]PRODUCT!D$5:D$2000,B50,[1]PRODUCT!F$5:F$2000) -> 10478.08 | D50: 2.299355347
B51: 628 | C51: =SUMIF([1]PRODUCT!D$5:D$2000,B51,[1]PRODUCT!F$5:F$2000) -> 297.89 | D51: 0.06537027436
B52: 629 | C52: =SUMIF([1]PRODUCT!D$5:D$2000,B52,[1]PRODUCT!F$5:F$2000) -> 11765.67 | D52: 2.581909685
B53: 630 | C53: =SUMIF([1]PRODUCT!D$5:D$2000,B53,[1]PRODUCT!F$5:F$2000) -> 12466.87 | D53: 2.735784056
B54: 631 | C54: =SUMIF([1]PRODUCT!D$5:D$2000,B54,[1]PRODUCT!F$5:F$2000) -> 10192.59 | D54: 2.236706183
B55: 632 | C55: =SUMIF([1]PRODUCT!D$5:D$2000,B55,[1]PRODUCT!F$5:F$2000) -> 3.26 | D55: 0.0007153885475
B56: 634 | C56: =SUMIF([1]PRODUCT!D$5:D$2000,B56,[1]PRODUCT!F$5:F$2000) -> 26443.15 | D56: 5.802799592
B57: 635 | C57: =SUMIF([1]PRODUCT!D$5:D$2000,B57,[1]PRODUCT!F$5:F$2000) -> 4275.28 | D57: 0.9381859967
B58: 637 | C58: =SUMIF([1]PRODUCT!D$5:D$2000,B58,[1]PRODUCT!F$5:F$2000) -> 539.69 | D58: 0.1184319157
B59: 638 | C59: =SUMIF([1]PRODUCT!D$5:D$2000,B59,[1]PRODUCT!F$5:F$2000) -> 8950.76 | D59: 1.964193618
B60: 639 | C60: =SUMIF([1]PRODUCT!D$5:D$2000,B60,[1]PRODUCT!F$5:F$2000) -> 28840.29 | D60: 6.328838396
B61: 640 | C61: =SUMIF([1]PRODUCT!D$5:D$2000,B61,[1]PRODUCT!F$5:F$2000) -> 1373.7 | D61: 0.3014506895
B62: 641 | C62: =SUMIF([1]PRODUCT!D$5:D$2000,B62,[1]PRODUCT!F$5:F$2000) -> 11.06 | D62: 0.002427054397
B63: 644 | C63: =SUMIF([1]PRODUCT!D$5:D$2000,B63,[1]PRODUCT!F$5:F$2000) -> 12385.37 | D63: 2.717899342
B64: 645 | C64: =SUMIF([1]PRODUCT!D$5:D$2000,B64,[1]PRODUCT!F$5:F$2000) -> 1582.06 | D64: 0.3471741121
B65: 651 | C65: =SUMIF([1]PRODUCT!D$5:D$2000,B65,[1]PRODUCT!F$5:F$2000) -> 94.87 | D65: 0.02081868451
B66: 652 | C66: =SUMIF([1]PRODUCT!D$5:D$2000,B66,[1]PRODUCT!F$5:F$2000) -> 1213.17 | D66: 0.2662232896
B67: 653 | C67: =SUMIF([1]PRODUCT!D$5:D$2000,B67,[1]PRODUCT!F$5:F$2000) -> 277.37 | D67: 0.06086727651
B68: 658 | C68: =SUMIF([1]PRODUCT!D$5:D$2000,B68,[1]PRODUCT!F$5:F$2000) -> 251.18 | D68: =C68/C$1*100 -> 0.05512002925
B69: 660 | C69: =SUMIF([1]PRODUCT!D$5:D$2000,B69,[1]PRODUCT!F$5:F$2000) -> 133.34 | D69: 0.02926070826
B70: 662 | C70: =SUMIF([1]PRODUCT!D$5:D$2000,B70,[1]PRODUCT!F$5:F$2000) -> 32.38 | D70: 0.00710560772
B71: 676 | C71: =SUMIF([1]PRODUCT!D$5:D$2000,B71,[1]PRODUCT!F$5:F$2000) -> 409.55 | D71: 0.08987342933
B72: 682 | C72: =SUMIF([1]PRODUCT!D$5:D$2000,B72,[1]PRODUCT!F$5:F$2000) -> 490.91 | D72: 0.1077274208
B73: 683 | C73: =SUMIF([1]PRODUCT!D$5:D$2000,B73,[1]PRODUCT!F$5:F$2000) -> 183.38 | D73: 0.04024170302
B74: 689 | C74: =SUMIF([1]PRODUCT!D$5:D$2000,B74,[1]PRODUCT!F$5:F$2000) -> 24.17 | D74: 0.005303969691
B75: 690 | C75: =SUMIF([1]PRODUCT!D$5:D$2000,B75,[1]PRODUCT!F$5:F$2000) -> 61.33 | D75: 0.01345852136
B76: 704 | C76: =SUMIF([1]PRODUCT!D$5:D$2000,B76,[1]PRODUCT!F$5:F$2000) -> 57.55 | D76: 0.01262902175
B77: 707 | C77: =SUMIF([1]PRODUCT!D$5:D$2000,B77,[1]PRODUCT!F$5:F$2000) -> 34.59 | D77: 0.007590579711
B78: 712 | C78: =SUMIF([1]PRODUCT!D$5:D$2000,B78,[1]PRODUCT!F$5:F$2000) -> 79.38 | D78: 0.01741949169
B79: 714 | C79: =SUMIF([1]PRODUCT!D$5:D$2000,B79,[1]PRODUCT!F$5:F$2000) -> 3397.32 | D79: 0.7455226442
B80: 716 | C80: =SUMIF([1]PRODUCT!D$5:D$2000,B80,[1]PRODUCT!F$5:F$2000) -> 46.8 | D80: 0.0102699951
B81: 718 | C81: =SUMIF([1]PRODUCT!D$5:D$2000,B81,[1]PRODUCT!F$5:F$2000) -> 46.46 | D81: 0.01019538402
B82: 728 | C82: =SUMIF([1]PRODUCT!D$5:D$2000,B82,[1]PRODUCT!F$5:F$2000) -> 5530.56 | D82: 1.213650087
B83: 729 | C83: =SUMIF([1]PRODUCT!D$5:D$2000,B83,[1]PRODUCT!F$5:F$2000) -> 324.96 | D83: 0.07131063264
B84: 734 | C84: =SUMIF([1]PRODUCT!D$5:D$2000,B84,[1]PRODUCT!F$5:F$2000) -> 1523.77 | D84: 0.3343827015
B85: 735 | C85: =SUMIF([1]PRODUCT!D$5:D$2000,B85,[1]PRODUCT!F$5:F$2000) -> 358.46 | D85: 0.07866201802
B86: 738 | C86: =SUMIF([1]PRODUCT!D$5:D$2000,B86,[1]PRODUCT!F$5:F$2000) -> 9089.18 | D86: 1.994569104
B87: 739 | C87: =SUMIF([1]PRODUCT!D$5:D$2000,B87,[1]PRODUCT!F$5:F$2000) -> 293.35 | D87: 0.06437399706
B88: 740 | C88: =SUMIF([1]PRODUCT!D$5:D$2000,B88,[1]PRODUCT!F$5:F$2000) -> 10438.77 | D88: 2.29072899
B89: 741 | C89: =SUMIF([1]PRODUCT!D$5:D$2000,B89,[1]PRODUCT!F$5:F$2000) -> 1.89 | D89: 0.0004147498021
B90: 743 | C90: =SUMIF([1]PRODUCT!D$5:D$2000,B90,[1]PRODUCT!F$5:F$2000) -> 4179.75 | D90: 0.9172224789
B91: 762 | C91: =SUMIF([1]PRODUCT!D$5:D$2000,B91,[1]PRODUCT!F$5:F$2000) -> 4050.24 | D91: 0.8888022425
B92: 763 | C92: =SUMIF([1]PRODUCT!D$5:D$2000,B92,[1]PRODUCT!F$5:F$2000) -> 2597.76 | D92: 0.570063728
B93: 764 | C93: =SUMIF([1]PRODUCT!D$5:D$2000,B93,[1]PRODUCT!F$5:F$2000) -> 16620.32 | D93: 3.647235148
B94: 768 | C94: =SUMIF([1]PRODUCT!D$5:D$2000,B94,[1]PRODUCT!F$5:F$2000) -> 4476.04 | D94: 0.9822416424
B95: 769 | C95: =SUMIF([1]PRODUCT!D$5:D$2000,B95,[1]PRODUCT!F$5:F$2000) -> 13133.47 | D95: 2.882065652
B96: 770 | C96: =SUMIF([1]PRODUCT!D$5:D$2000,B96,[1]PRODUCT!F$5:F$2000) -> 4992.44 | D96: =C96/C$1*100 -> 1.095562699
B97: 771 | C97: =SUMIF([1]PRODUCT!D$5:D$2000,B97,[1]PRODUCT!F$5:F$2000) -> 4862.75 | D97: 1.067102963
B98: 774 | C98: =SUMIF([1]PRODUCT!D$5:D$2000,B98,[1]PRODUCT!F$5:F$2000) -> 3014.96 | D98: 0.6616159065
B99: 777 | C99: =SUMIF([1]PRODUCT!D$5:D$2000,B99,[1]PRODUCT!F$5:F$2000) -> 4185.7 | D99: 0.9185281728
B100: 780 | C100: =SUMIF([1]PRODUCT!D$5:D$2000,B100,[1]PRODUCT!F$5:F$2000) -> 441.56 | D100: 0.09689784265
B101: 781 | C101: =SUMIF([1]PRODUCT!D$5:D$2000,B101,[1]PRODUCT!F$5:F$2000) -> 187.33 | D101: 0.04110850816
B102: 784 | C102: =SUMIF([1]PRODUCT!D$5:D$2000,B102,[1]PRODUCT!F$5:F$2000) -> 14536.37 | D102: 3.189924117
B103: 792 | C103: =SUMIF([1]PRODUCT!D$5:D$2000,B103,[1]PRODUCT!F$5:F$2000) -> 994.2 | D103: 0.2181715626
B104: 813 | C104: =SUMIF([1]PRODUCT!D$5:D$2000,B104,[1]PRODUCT!F$5:F$2000) -> 2623.45 | D104: 0.575701253
B105: 814 | C105: =SUMIF([1]PRODUCT!D$5:D$2000,B105,[1]PRODUCT!F$5:F$2000) -> 686.11 | D105: 0.1505629559
B106: 815 | C106: =SUMIF([1]PRODUCT!D$5:D$2000,B106,[1]PRODUCT!F$5:F$2000) -> 677.21 | D106: 0.1486099013
D107: =SUM(D3:D106) -> 100
